Workbook

Sheet Eingabe
B2: ABC-Analyse (Materialwirtschaft)
D4: Nach Klick auf "Eingabe" können bis zu 20 Güter, deren Einkaufspreise und Verbrauchsmengen eingeben werden. (Die Anwendung kann zur Eingabe weiterer Produkte erweitert werden)
D7: Nack Klick auf "Klassifzierung" können die für die Zurordnung zu den Güterklassen A, B und C maßgeblichen Prozentsätze eingegeben werden.
D10: Nach Klick auf "Analyse" werden die kumulierten Mengen- und Wertanteile der Güter ermittelt und die Einstufung in die Klassen A,B und C vorgenommen.
D13: Güterklassen | E13: Wert- bereiche | F13: Güteranzahl je Klasse | G13: Mengen- anteile je Güterklasse | H13: Wertanteil je Güterklasse
D16: A | E16: =Berechnungen!E4 -> 0.7 | F16: =COUNTIF(Berechnungen!K12:K36,"A") -> 10 | G16: =Berechnungen!N37 -> 0.31640625 | H16: =Berechnungen!M37 -> 0.691422493
D17: B | E17: =Berechnungen!E5 -> 0.2 | F17: =COUNTIF(Berechnungen!K12:K36,"B") -> 6 | G17: =Berechnungen!P37 -> 0.21875 | H17: =Berechnungen!O37 -> 0.1953389421
D18: C | E18: =Berechnungen!E6 -> 0.1 | F18: =COUNTIF(Berechnungen!K12:K36,"C") -> 9 | G18: =Berechnungen!R37 -> 0.46484375 | H18: =Berechnungen!Q37 -> 0.1132385649

Sheet Berechnungen
D2: kumulierter Wertanteil bis | F2: ABC-Analyse (Berechnungen)
C3: Güterklasse
C4: A | D4: 70 | E4: =D4% -> 0.7
C5: B | D5: 20 | E5: =D5% -> 0.2
C6: C | D6: 10 | E6: =D6% -> 0.1
B8: Rang- platz | C8: Produkte | D8: Nettopreis | E8: Verkaufs- mengen | F8: Verkaufswert | G8: Mengen- anteil in % | H8: Wert- anteil in % | I8: kumulierter Mengenanteil in % | J8: kumulierter Wertanteil in % | K8: Einstufung
M9: Wertanteil | N9: Mengenanteil | O9: Wertanteil | P9: Mengenanteil | Q9: Wertanteil | R9: Mengenanteil
M10: der A-Güter | N10: der A-Güter | O10: der B-Güter | P10: der B-Güter | Q10: fder C-Güter | R10: der C-Güter
B12: =IF(C12="","",B11+1) -> 1 | C12: Schaltgruppe X | D12: 80 | E12: 350 | F12: =IF(C12="","",D12*E12) -> 28000 | G12: =IF(C12="","",E12/$E$37) -> 0.02734375 | H12: =IF(C12="",0,F12/$F$37) -> 0.1353834252 | I12: =IF(C12="","",I11+G12) -> 0.02734375 | J12: =IF(C12="","",J11+H12) -> 0.1353834252 | K12: =IF(C12="","",IF(J12<$E$4,"A",IF(J12<($E$4+$E$5),"B","C"))) -> A | M12: =IF(K12="A",H12,"") -> 0.1353834252 | N12: =IF(K12="A",G12,"") -> 0.02734375 | O12: =IF(K12="B",H12,"") ->  | P12: =IF(K12="B",G12,"") ->  | Q12: =IF(K12="C",H12,"") ->  | R12: =IF(K12="C",G12,"") -> 
B13: =IF(C13="","",B12+1) -> 2 | C13: Bremshebel | D13: 20 | E13: 800 | F13: 16000 | G13: 0.0625 | H13: 0.07736195726 | I13: 0.08984375 | J13: 0.2127453825 | K13: A | M13: =IF(K13="A",H13,"") -> 0.07736195726 | N13: =IF(K13="A",G13,"") -> 0.0625 | O13: =IF(K13="B",H13,"") ->  | P13: =IF(K13="B",G13,"") ->  | Q13: =IF(K13="C",H13,"") ->  | R13: =IF(K13="C",G13,"") -> 
B14: 3 | C14: Laufräder (Hohlkammer) | D14: 45 | E14: 350 | F14: 15750 | G14: 0.02734375 | H14: 0.07615317668 | I14: 0.1171875 | J14: 0.2888985591 | K14: A | M14: 0.07615317668 | N14: 0.02734375
B15: 4 | C15: Schalgruppe A | D15: 55 | E15: 250 | F15: 13750 | G15: 0.01953125 | H15: 0.06648293202 | I15: 0.13671875 | J15: 0.3553814912 | K15: A | M15: 0.06648293202 | N15: 0.01953125
B16: 5 | C16: Rahmen CroMo | D16: 40 | E16: 300 | F16: 12000 | G16: 0.0234375 | H16: 0.05802146794 | I16: 0.16015625 | J16: 0.4134029591 | K16: A | M16: 0.05802146794 | N16: 0.0234375
B17: 6 | C17: Kette | D17: 15 | E17: 800 | F17: 12000 | G17: 0.0625 | H17: 0.05802146794 | I17: 0.22265625 | J17: 0.471424427 | K17: A | M17: 0.05802146794 | N17: 0.0625
B18: 7 | C18: Sattel | D18: 20 | E18: 600 | F18: 12000 | G18: 0.046875 | H18: 0.05802146794 | I18: 0.26953125 | J18: 0.529445895 | K18: A | M18: 0.05802146794 | N18: 0.046875
B19: 8 | C19: Lenker (Trekking) | D19: 45 | E19: 250 | F19: 11250 | G19: 0.01953125 | H19: 0.0543951262 | I19: 0.2890625 | J19: 0.5838410212 | K19: A | M19: 0.0543951262 | N19: 0.01953125
B20: 9 | C20: Schaltgruppe L | D20: 75 | E20: 150 | F20: 11250 | G20: 0.01171875 | H20: 0.0543951262 | I20: 0.30078125 | J20: 0.6382361474 | K20: A | M20: 0.0543951262 | N20: 0.01171875
B21: 10 | C21: Rahmen Aluminium | D21: 55 | E21: 200 | F21: 11000 | G21: 0.015625 | H21: 0.05318634561 | I21: 0.31640625 | J21: 0.691422493 | K21: A | M21: 0.05318634561 | N21: 0.015625
B22: 11 | C22: Beleuchtungsgruppe | D22: 10 | E22: 900 | F22: 9000 | G22: 0.0703125 | H22: 0.04351610096 | I22: 0.38671875 | J22: 0.7349385939 | K22: B | O22: 0.04351610096 | P22: 0.0703125
B23: 12 | C23: Lenker (Rennen) | D23: 35 | E23: 200 | F23: 7000 | G23: 0.015625 | H23: 0.0338458563 | I23: 0.40234375 | J23: 0.7687844502 | K23: B | O23: 0.0338458563 | P23: 0.015625
B24: 13 | C24: Sattel Leder | D24: 35 | E24: 200 | F24: 7000 | G24: 0.015625 | H24: 0.0338458563 | I24: 0.41796875 | J24: 0.8026303065 | K24: B | O24: 0.0338458563 | P24: 0.015625
B25: 14 | C25: Laufräder | D25: 30 | E25: 200 | F25: 6000 | G25: 0.015625 | H25: 0.02901073397 | I25: 0.43359375 | J25: 0.8316410405 | K25: B | O25: 0.02901073397 | P25: 0.015625
B26: 15 | C26: Bremsen V-Brake | D26: 15 | E26: 400 | F26: 6000 | G26: 0.03125 | H26: 0.02901073397 | I26: 0.46484375 | J26: 0.8606517745 | K26: B | O26: 0.02901073397 | P26: 0.03125
B27: 16 | C27: Pedale | D27: 6 | E27: 900 | F27: 5400 | G27: 0.0703125 | H27: 0.02610966057 | I27: 0.53515625 | J27: 0.8867614351 | K27: B | O27: 0.02610966057 | P27: 0.0703125
B28: 17 | C28: Steuersätze | D28: 6 | E28: 700 | F28: 4200 | G28: 0.0546875 | H28: 0.02030751378 | I28: 0.58984375 | J28: 0.9070689488 | K28: C | Q28: 0.02030751378 | R28: 0.0546875
B29: 18 | C29: Decken | D29: 5 | E29: 800 | F29: 4000 | G29: 0.0625 | H29: 0.01934048931 | I29: 0.65234375 | J29: 0.9264094382 | K29: C | Q29: 0.01934048931 | R29: 0.0625
B30: 19 | C30: Schutzbleche | D30: 8 | E30: 500 | F30: 4000 | G30: 0.0390625 | H30: 0.01934048931 | I30: 0.69140625 | J30: 0.9457499275 | K30: C | Q30: 0.01934048931 | R30: 0.0390625
B31: 20 | C31: Lenker (Mountain) | D31: 35 | E31: 100 | F31: 3500 | G31: 0.0078125 | H31: 0.01692292815 | I31: 0.69921875 | J31: 0.9626728556 | K31: C | Q31: 0.01692292815 | R31: 0.0078125
B32: 21 | C32: Schläuche | D32: 3 | E32: 900 | F32: 2700 | G32: 0.0703125 | H32: 0.01305483029 | I32: 0.76953125 | J32: 0.9757276859 | K32: C | Q32: 0.01305483029 | R32: 0.0703125
B33: 22 | C33: Bremsen U-Brake | D33: 10 | E33: 250 | F33: 2500 | G33: 0.01953125 | H33: 0.01208780582 | I33: 0.7890625 | J33: 0.9878154917 | K33: C | Q33: 0.01208780582 | R33: 0.01953125
B34: 23 | C34: Griffe | D34: 2 | E34: 1000 | F34: 2000 | G34: 0.078125 | H34: 0.009670244657 | I34: 0.8671875 | J34: 0.9974857364 | K34: C | Q34: 0.009670244657 | R34: 0.078125
B35: 24 | C35: Dekor | D35: 0.4 | E35: 900 | F35: 360 | G35: 0.0703125 | H35: 0.001740644038 | I35: 0.9375 | J35: 0.9992263804 | K35: C | Q35: 0.001740644038 | R35: 0.0703125
B36: 25 | C36: Felgenbänder | D36: 0.2 | E36: 800 | F36: 160 | G36: 0.0625 | H36: 0.0007736195726 | I36: 1 | J36: 1 | K36: C | Q36: 0.0007736195726 | R36: 0.0625
E37: =SUM(E12:E36) -> 12800 | F37: =SUM(F12:F36) -> 206820 | G37: =SUM(G12:G36) -> 1 | H37: =SUM(H12:H36) -> 1 | M37: =SUM(M12:M36) -> 0.691422493 | N37: 0.31640625 | O37: 0.1953389421 | P37: 0.21875 | Q37: 0.1132385649 | R37: 0.46484375
B39: Berechnungen für Grafik: Spalten M-R | M39: kumulierte | N39: kumulierte
M40: Mengenanteile | N40: Wertanteile | P40: Güterklassen | Q40: Mengenanteile | R40: Wertanteile
M42: 0 | N42: 0 | P42: A | Q42: =N37 -> 0.31640625 | R42: =M37 -> 0.691422493
M43: =M42+N37 -> 0.31640625 | N43: =N42+M37 -> 0.691422493 | P43: B | Q43: =P37 -> 0.21875 | R43: =O37 -> 0.1953389421
M44: =M43+P37 -> 0.53515625 | N44: =N43+O37 -> 0.8867614351 | P44: C | Q44: =R37 -> 0.46484375 | R44: =Q37 -> 0.1132385649
M45: =M44+R37 -> 1 | N45: =N44+Q37 -> 1

Sheet Grafik1
